Cogmind - Beta 9.4 @@@ ROGUE MODE // 2020.01.28 @ 07:18:46 Player: Ctrl_Alt_X Result: Destroyed by as-57219 with Assembled Rifle Performance ------------- Evolutions (0) 0 Regions Visited (2) 400 Robots Destroyed (6) 30 Value Destroyed (113) 113 Prototype IDs (0) 0 Alien Tech Used (0) 0 Bonus (0) 0 TOTAL SCORE: 543 Bonus ------- None Cogmind --------- Core Integrity 0/250 Matter 299/300 Energy 49/100 System Corruption 10% Temperature Cool (0) Movement Core (50) Location -10/Mines Parts ------- > --- POWER (1) -------- (None) > --- PROPULSION (2) --- Wheel Wheel > --- UTILITY (2) ------ (None) > --- WEAPON (2) ------- (None) > --- INVENTORY (4) ---- Improved Heat Sink Large Storage Unit Large Storage Unit Medium Laser Peak State ------------ > --- POWER ------------ Light Nuclear Core > --- PROPULSION ------- Wheel Wheel > --- UTILITY ---------- Medium Storage Unit Light Armor Plating > --- WEAPON ----------- Small Laser Assault Rifle > --- INVENTORY -------- Light Ion Engine Wheel Wheel Improved Heat Sink Large Storage Unit Large Storage Unit Medium Laser Light Assault Rifle [Rating: 10] Favorites ----------- Power Light Ion Engine Engine Light Ion Engine Power Core Light Nuclear Core Propulsion Wheel Wheel Wheel Utility Medium Storage Unit Storage Medium Storage Unit Protection Light Armor Plating Weapon Small Laser Energy Gun Small Laser Ballistic Gun Assault Rifle Build | -11 -10 -10 ------- Run | Scr Mat Min Slots Evolved . | . . . Power . | . . . Propulsion . | . . . Utility . | . . . Weapon . | . . . Parts Attached 15 | 5 3 7 Power 2 | 1 . 1 Engine 1 | 1 . . Core 1 | . . 1 Reactor . | . . . Propulsion 7 | 2 . 5 Treads . | . . . Leg . | . . . Wheel 7 | 2 . 5 Hover . | . . . Flight . | . . . Utility 3 | 1 2 . Device . | . . . Storage 2 | 1 1 . Processor . | . . . Hackware . | . . . Protection 1 | . 1 . Artifact . | . . . Weapon 3 | 1 1 1 Energy Gun 1 | 1 . . Energy Cannon . | . . . Ballistic Gun 1 | . 1 . Ballistic Cannon . | . . . Launcher 1 | . . 1 Special Weapon . | . . . Impact Weapon . | . . . Slashing Weapon . | . . . Piercing Weapon . | . . . Special Melee Weapon . | . . . Unidentified Prototypes . | . . . Parts Lost 10 | . . 10 Power 1 | . . 1 Propulsion 5 | . . 5 Utility 1 | . . 1 Weapon 3 | . . 3 Highest Loss Streak 7 | . . 7 Average Slot Usage (%) 59 | . 92 48 Engine 5 | . 14 3 Wheel 26 | . 28 26 Storage 7 | . 14 4 Protection 5 | . 10 4 Energy Gun 6 | . 14 3 Ballistic Gun 5 | . 10 4 Naked Turns 7 | . . 7 Heaviest Build 19 | 8 17 19 Greatest Support 20 | 20 20 20 Greatest Overweight (x) 1 | . . 1 Average Overweight (x) . | . . . Largest Inventory Capacity 10 | 6 10 8 Average Capacity 5 | 5 7 5 Most Carried 8 | 5 7 8 Average Carried 5 | 2 6 5 Final Capacity 8 | 6 8 4 Final Carried 7 | 5 7 4 Class Distribution -------------------- 100% | Mutant Dominant Class ---------------- Mutant | -10/Materials Mutant | -10/Mines Resources | -11 -10 -10 ----------- Run | Scr Mat Min Matter Collected 386 | 250 60 76 Remotely . | . . . Salvage Created 166 | . 50 116 Parts 9 | . 1 8 Haulers Intercepted 1 | . 1 . Recyclers Shooed 2 | . 2 . Parts Field Recycled . | . . . Retrieved Matter . | . . . Parts Self-Destructed . | . . . Prevented . | . . . Kills | -11 -10 -10 ------- Run | Scr Mat Min Combat Hostiles Destroyed 5 | . . 5 Guns 5 | . . 5 Classes Destroyed 3 | . 1 2 Hauler 1 | . 1 . Swarmer 3 | . . 3 Grunt 2 | . . 2 Best Kill Streak 3 | . 1 3 Combat Bots Only 3 | . . 3 Max Kills in Single Turn 1 | . 1 1 Gunslinging . | . . . Exploded . | . . . Melee . | . . . Uniques/NPCs Destroyed . | . . . Combat | -11 -10 -10 -------- Run | Scr Mat Min Damage Taken 810 | . . 810 Core 258 | . . 258 Absorbed by Shields . | . . . Core Remaining (%) 100 | 100 . . Volleys Fired 25 | . 10 15 Largest 2 | . 2 2 Hottest 60 | . 60 60 Shots Fired 50 | . 20 30 Gun 50 | . 20 30 Cannon . | . . . Launcher . | . . . Special . | . . . Kinetic 25 | . 10 15 Thermal 25 | . 10 15 Explosive . | . . . Electromagnetic . | . . . Robot Hit Streak 11 | . 9 11 Robot Miss Streak 4 | . 1 4 Penetration Max . | . . . Secondary Targets . | . . . Shots Hit Robots 34 | . 15 19 Core Hits 11 | . 3 8 Critical Hits . | . . . Critical Kills . | . . . Critical Parts Destroyed . | . . . Melee Attacks . | . . . Impact . | . . . Slashing . | . . . Piercing . | . . . Sneak Attacks . | . . . Combat Hostiles . | . . . Follow-up Attacks . | . . . Damage Inflicted 438 | . 206 232 Guns 438 | . 206 232 Cannons . | . . . Explosions . | . . . Melee . | . . . Ramming . | . . . Kinetic 204 | . 105 99 Thermal 234 | . 101 133 Explosive . | . . . Electromagnetic . | . . . Impact . | . . . Slashing . | . . . Piercing . | . . . Highest Corruption 10 | . . 10 Average Corruption 1 | . . 1 Corruption Purged . | . . . Effects 2 | . . 2 Message Errors 1 | . . 1 Energy Discharges 1 | . . 1 Overload Shots . | . . . Overflow Damage . | . . . Projectiles . | . . . Explosions . | . . . Melee . | . . . Knockbacks . | . . . Impact . | . . . Kinetic . | . . . Secondary . | . . . Self-Inflicted Damage . | . . . Shots . | . . . Rammed . | . . . Targets Rammed . | . . . Kicked . | . . . Crushed . | . . . Highest Temperature 63 | . 36 63 Average Temperature 21 | . 12 28 Received Heat Transfer 45 | . . 45 Siege Activations . | . . . Robots Corrupted . | . . . Combat Hostiles . | . . . Parts Fried . | . . . Impact Corruptions . | . . . Robots Melted . | . . . Combat Hostiles . | . . . Parts Melted . | . . . Heat Transferred 525 | . 225 300 Parts Sabotaged . | . . . Parts Stolen . | . . . Parts Stripped . | . . . Power Chain Reactions . | . . . Missiles Intercepted . | . . . Alert | -11 -10 -10 ------- Run | Scr Mat Min Peak Influence 128 | . 22 128 Average Influence 48 | . 6 67 Maximum Alert Level . | . . . Low Security (%) 100 | 100 100 100 Level 1 . | . . . Level 2 . | . . . Level 3 . | . . . Level 4 . | . . . Level 5 . | . . . High Security . | . . . Max Security . | . . . Squads Dispatched 1 | . 1 . Investigation 1 | . 1 . Extermination . | . . . Reinforcement . | . . . Assault . | . . . Garrison . | . . . Intercept . | . . . Construction Impeded . | . . . Haulers Reinforced . | . . . Stealth | -11 -10 -10 --------- Run | Scr Mat Min Distress Signals . | . . . Communications Jammed . | . . . Distress Signals . | . . . Times Spotted 20 | . 1 19 Peak Tracking Total 8 | . 1 8 Tactical Retreats 1 | . . 1 Traps | -11 -10 -10 ------- Run | Scr Mat Min Traps Triggered 1 | . 1 . Indirectly . | . . . Trap Hack Attempts . | . . . Triggered . | . . . Disarmed . | . . . Reprogrammed . | . . . Reused . | . . . Traps Extracted . | . . . Installed . | . . . Triggered . | . . . Machines | -11 -10 -10 ---------- Run | Scr Mat Min Machines Disabled . | . . . Max in Single Turn . | . . . Machines Sabotaged . | . . . Garrisons Compromised . | . . . Overloaded Fab Kills . | . . . Fab Network Shutdowns . | . . . Hacking | -11 -10 -10 --------- Run | Scr Mat Min Machines Accessed 1 | . 1 . Terminals 1 | . 1 . Fabricators . | . . . Repair Stations . | . . . Recycling Units . | . . . Scanalyzers . | . . . Garrison Access . | . . . Total Hacks 6 | . 6 . Successful 1 | . 1 . Failed 5 | . 5 . Catastrophic 1 | . 1 . Database Lockouts . | . . . Manual 2 | . 2 . Terminals 6 | . 6 . Fabricators . | . . . Repair Stations . | . . . Recycling Units . | . . . Scanalyzers . | . . . Garrison Access . | . . . Terminal Hacks 1 | . 1 . Recall Investigation 1 | . 1 . Fabricator Hacks . | . . . Repair Station Hacks . | . . . Recycling Unit Hacks . | . . . Scanalyzer . | . . . Garrison Access Hacks . | . . . Unauthorized Hacks . | . . . Terminals . | . . . Fabricators . | . . . Repair Stations . | . . . Recycling Units . | . . . Scanalyzers . | . . . Garrison Access . | . . . Data Cores Recovered . | . . . Used . | . . . Hacking Detections 1 | . 1 . Full Trace Events 1 | . 1 . Feedback Events . | . . . Feedback Blocked . | . . . Robot Schematics Acquired . | . . . Robots Built . | . . . Matter . | . . . Time . | . . . Total Robot Build Rating . | . . . Part Schematics Acquired . | . . . Parts Built . | . . . Matter . | . . . Time . | . . . Total Part Build Rating . | . . . Parts Repaired . | . . . Time . | . . . Parts Recycled . | . . . Recycled Matter . | . . . Retrieved Matter . | . . . Retrieved Components . | . . . Parts Scanalyzed . | . . . Part Schematics Acquired . | . . . Parts Damaged . | . . . Bothacking | -11 -10 -10 ------------ Run | Scr Mat Min Used RIF Installer . | . . . Robots Hacked . | . . . Non-combat . | . . . Combat . | . . . Robot Hacks Applied . | . . . Relay Couplers Released . | . . . Robots Rewired . | . . . Allies Hacked . | . . . Hacks Repelled . | . . . Allies | -11 -10 -10 -------- Run | Scr Mat Min Total Allies . | . . . Largest Group . | . . . Highest-Rated Group . | . . . Highest-Rated Ally . | . . . Total Orders . | . . . Ally Attacks . | . . . Total Damage . | . . . Kills . | . . . Allies Corrupted . | . . . Allies Melted . | . . . Intel | -11 -10 -10 ------- Run | Scr Mat Min Robot Analysis Total . | . . . Derelict Logs Recovered 1 | . . 1 Drone Launches . | . . . Drone Recoveries . | . . . Exploration | -11 -10 -10 ------------- Run | Scr Mat Min Turns Passed 527 | 46 115 366 Spaces Moved 347 | 44 93 210 Core 129 | 3 . 126 Treads . | . . . Legs . | . . . Wheels 218 | 41 93 84 Hover . | . . . Flight . | . . . Fastest Speed 50 | 50 80 50 Average Speed 69 | 77 80 62 Slowest Speed 90 | 80 80 90 Overloaded Moves . | . . . Propulsion Burnouts . | . . . Robots Hopped . | . . . Cave-ins Triggered . | . . . Exploration Rate (%) 25 | 4 19 52 Regions Visited 2 Branch Regions 1 Pre-discovered Areas 1 | . . 1 Known Exits Taken . | . . . Unknown Exits Taken 2 | 1 1 . Scrap Searched . | . . . Spaces Dug . | . . . Terrain Destroyed . | . . . Melee . | . . . Projectile . | . . . AOE . | . . . Actions | -11 -10 -10 --------- Run | Scr Mat Min Total 580 | 53 113 414 Wait 177 | . . 177 Move 345 | 43 92 210 Hop . | . . . Pick Up 10 | 5 4 1 Fast Attach 13 | 5 3 5 Attach 2 | . . 2 Detach 1 | . 1 . Swap . | . . . Drop 7 | . 3 4 Fire 25 | . 10 15 Melee . | . . . Ram . | . . . Kick . | . . . Crush . | . . . Escape Stasis . | . . . Rewire . | . . . Trap . | . . . Miscellaneous . | . . . Route ------- -11/Scrapyard -10/Materials -10/Mines History --------- Turn | Location | Event 2 | -11/Scrapyard | Met Revision 17 21 | -11/Scrapyard | Discovered new exit (range 15) 47 | -11/Scrapyard | Entered Materials 129 | -10/Materials | Discovered new exit (range 8) 162 | -10/Materials | Entered Mines 189 | -10/Mines | Assembled infested the area 194 | -10/Mines | Assisted by a Guerilla fighting off Assembled 309 | -10/Mines | Build established: Mutant 319 | -10/Mines | Lost 7 parts (1p2n1u3w) 517 | -10/Mines | System corruption reached 10% 518 | -10/Mines | Core integrity fell below 50% 527 | -10/Mines | Core integrity fell below 20% 528 | -10/Mines | Destroyed by as-57219 with Assembled Rifle Last Messages --------------- 00282_ K-01 Serf destroyed. 00283_ Dropped Lgt. Assault Rifle. 00283_ Dropped Med. Storage Unit. 00284_ K-01 Serf collects debris. 00286_ as-27315 sneak attacks. 00286_ K-01 Serf destroyed. 00288_ Acquired Grenade Launcher. 00288_ K-01 Serf destroyed. 00288_ Grenade Launcher destroyed. 00291_ FX4 0S H1TV9KUSV 6FU&E3ZI< JUM3O#R 00506_ Acquired 15 matter. 00512_ Wheel destroyed. 00514_ Acquired Wheel. 00516_ Wheel destroyed. 00516_ System corrupted by crushing effect (+4). 00516_ System corrupted by crushing effect (+5). 00519_ R-06 Scavenger destroyed. 00520_ System corrupted: Energy discharge (-40). 00523_ Acquired Wheel. 00528_ Acquired 19 matter. Map ----- +----------------------------------------------------+ | ????# ?????????????????# #???????????##### #??# | | ????#??????### ###????## #???????????# #?# | | ??????????? ??## ##??????????# ###### | | ??????????? # ## =%= #????####??# ##### | | ??????????? # |!!#???## #### ## | | ????????? % % % % *%#???# | | ????????? ! =|#??## | | ????????? =%####=[ | | ?????????? # ### ##%!*! | | ?????????? ## ##???## *= % | | ????????????#???????## %* | | ?????????????????????## !% = / | | ??????????????????????## =%= % ### ## | | ???????????????????????######! !%! #######?# | | ????????????????????????????## !=%! #???????# | | ?????????????????????????????#####!! % ##??????? | | ?????????????????????????????????##* ##?????? | | ??????????????????????????????????## = ##????? | | ???????????????????????????????????##%! #????? | | ????????????????????????###?????????#|!= ##????? | | ???????????????????????? #?????????#%=#####?????? | | ??????????????????#?????# #?????????#%%#?????????? | | ??????????????????# ????# #????####?#!!#?????????? | | ???????????????????# ??# #???##= ###%*#?????????? | | ???????????????????# ##|#####!=%a##%=#?????????? | | ???????????????????# !@a%*%%%=%a%=*!#?????????? | | ???????????????????## = !a!!%%!####=#?????????? | | ????????????????????#% %aa *=###??#%#?????????? | | ???????????????????# """ ! ###????###?????????? | | ??????????????????# """ ##??????????????????? | | ?????????????????# """ ##???????????????????? | | ????????????????# """ #????????????????????? | | ????????????????# ##????????????????????? | | ????????????????############?????????????????????? | | ?????????????????????????????????????????????????? | | ?????????????????????????????????????????????????? | | | | | | | | | | | | | | | | | | | | | | | | | | | | | +----------------------------------------------------+ Best States ------------- Heat Dissipation 25 Energy Generation 14 Energy Capacity 160 Matter Stores 300 Matter Capacity 300 Sight Range 16 Terrain Scan Density 10 Armor Coverage 150 Evasion (%) 50 Item Schematics ----------------- None Robot Schematics ------------------ None Fabricated ------------ Nothing Alien Tech Used ----------------- None Achievements -------------- None Challenges ------------ None Game ------ Seed StormTacticalActivator Manual? 0 Play Time 00:06:56 Cumulative 465.3 hours Start 2020.01.28 @ 07:02:04 End 2020.01.28 @ 07:18:46 Sessions 1 Manual Loads 0 Difficulty Rogue Special Mode None Game No. 300 Rogue 300 Adventurer 0 Explorer 0 Win Type - Total 32 Types 21/1/5/5/0/0/0 Lore% 88 Gallery% 88 Achievement% 76 Wizard Run 0 Options --------- ASCII 1 Keyboard 0 Movement Numpad Keybinds 0 Fullscreen 1 Font 20/SmallcapsGlow Map View 98x62 Tactical HUD 1 Map Filters NONE Filters NONE Steam 1 RUN: 1dfe0e56-ea79-42a7-8f18-3382c7b33803